bitfinex/quotes_SOLUSD_20230101
["timestamp","ask_amount","ask_price","bid_price","bid_amount"]
[1672547691723,95.88,9.8946,9.884,158.8275]
[1672547691939,40.0,9.8945,9.884,158.8275]
[1672547692149,40.0,9.8943,9.884,158.8275]
[1672547692390,40.0,9.8941,9.8842,40.0]
[1672547692571,75.89,9.894,9.8842,40.0]
[1672547692781,40.0,9.8939,9.8842,40.0]
[1672547692990,40.0,9.8939,9.8843,108.6889]
[1672547692991,40.0,9.8937,9.8843,108.6889]
[1672547693203,75.89,9.8936,9.8843,108.6889]
[1672547693408,40.0,9.8935,9.8843,108.6889]
[1672547693643,40.0,9.8933,9.8844,108.6889]
[1672547693954,40.0,9.8931,9.8844,108.6889]
[1672547694156,40.0,9.8929,9.8845,108.6889]
[1672547694363,40.0,9.8927,9.8845,108.6889]
[1672547694580,75.9,9.8926,9.8845,108.6889]
[1672547694789,40.0,9.8925,9.8846,108.6889]
[1672547694999,40.0,9.8923,9.8846,108.6889]
[1672547695216,75.9,9.8922,9.8846,108.6889]
[1672547695415,40.0,9.8921,9.8847,108.6889]
[1672547695629,75.9,9.892,9.8847,108.6889]
[1672547696045,75.9,9.892,9.8848,110.3362]
[1672547696251,40.0,9.8927,9.8848,110.3362]
[1672547696583,40.0,9.8925,9.8848,110.3362]
[1672547696796,75.9,9.8924,9.8849,110.3362]
[1672547697427,75.89,9.8934,9.885,110.3362]
[1672547697621,40.0,9.8933,9.885,110.3362]
[1672547697837,40.0,9.8931,9.885,110.3362]
[1672547698047,40.0,9.8929,9.885,110.3362]
[1672547698258,40.0,9.8929,9.8846,48.445]
[1672547698259,75.9,9.8928,9.8851,110.3362]
[1672547698460,40.0,9.8927,9.8851,110.3362]
[1672547698675,40.0,9.8925,9.8851,110.3362]
[1672547699007,40.0,9.8923,9.8852,110.3362]
[1672547699214,40.0,9.8921,9.8852,110.3362]
[1672547699405,40.0,9.8921,9.8853,110.9911]
[1672547699406,40.0,9.8919,9.8853,110.9911]
[1672547699616,75.91,9.8918,9.8853,110.9911]
[1672547699850,40.0,9.8917,9.8853,110.9911]
[1672547700039,40.0,9.8915,9.8854,110.9911]
[1672547700249,75.91,9.8914,9.8854,110.9911]
[1672547700564,40.0,9.8913,9.8854,110.9911]
[1672547700774,40.0,9.8911,9.8854,110.9911]
[1672547700988,40.0,9.8909,9.8854,110.9911]
[1672547701198,75.91,9.8908,9.8854,110.9911]
[1672547701408,40.0,9.8907,9.8854,110.9911]
[1672547701631,75.91,9.8906,9.8854,110.9911]
[1672547701944,75.91,9.8908,9.8854,110.9911]
[1672547702158,75.9,9.8924,9.8855,110.9911]
[1672547702558,75.89,9.8934,9.8855,110.9911]
[1672547702769,40.0,9.8933,9.8856,109.0469]
[1672547702987,75.89,9.8932,9.8856,109.0469]
[1672547703201,40.0,9.8931,9.8856,109.0469]
[1672547703409,40.0,9.8929,9.8857,109.0469]
[1672547703729,40.0,9.8927,9.8857,109.0469]
[1672547703947,75.9,9.8926,9.8858,109.0469]
[1672547704154,40.0,9.8925,9.8858,109.0469]
[1672547704361,40.0,9.8923,9.8858,109.0469]
[1672547704554,40.0,9.8923,9.8859,109.0469]
[1672547704555,75.9,9.8922,9.8859,109.0469]
[1672547704766,40.0,9.8921,9.8859,109.0469]
[1672547704975,40.0,9.8919,9.8859,109.0469]
[1672547705297,40.0,9.8917,9.8859,109.0469]
[1672547705515,40.0,9.8915,9.8859,109.0469]
[1672547705730,75.91,9.8914,9.8859,109.0469]
[1672547706037,40.0,9.8913,9.8859,109.0469]
[1672547706257,40.0,9.8911,9.8859,109.0469]
[1672547706467,40.0,9.8909,9.8859,109.0469]
[1672547706773,75.91,9.8908,9.8859,109.0469]
[1672547707513,40.0,9.8917,9.8859,109.0469]
[1672547707830,40.0,9.8915,9.8859,109.0469]
[1672547708033,75.91,9.8914,9.8859,109.0469]
[1672547708246,75.91,9.8916,9.8859,109.0469]
[1672547708458,40.0,9.8915,9.8859,109.0469]
[1672547708649,40.0,9.8913,9.8859,109.0469]
[1672547708865,75.91,9.8912,9.8859,109.0469]
[1672547711906,75.91,9.8916,9.8859,109.0469]
[1672547712127,75.91,9.8918,9.8859,109.0469]
[1672547712349,75.9,9.8924,9.886,22.5129]
[1672547712546,40.0,9.8923,9.886,22.5129]
[1672547712753,75.9,9.8922,9.886,22.5129]
[1672547712963,40.0,9.8921,9.8861,23.055]
[1672547713174,75.9,9.892,9.8861,23.055]
[1672547713389,40.0,9.8919,9.8861,23.055]
[1672547713601,40.0,9.8917,9.8861,23.055]
[1672547713806,75.91,9.8916,9.8861,23.055]
[1672547714023,40.0,9.8915,9.8861,23.055]
[1672547714234,40.0,9.8913,9.8861,23.055]
[1672547714555,40.0,9.8911,9.8861,23.055]
[1672547714749,75.91,9.891,9.8861,23.055]
[1672547715077,40.0,9.8909,9.8861,23.055]
[1672547715295,40.0,9.8907,9.8861,23.055]
[1672547715607,40.0,9.8905,9.8861,23.055]
[1672547715815,75.92,9.8904,9.8861,23.055]
[1672547716128,75.91,9.8906,9.8861,23.055]
[1672547717806,75.91,9.8908,9.8861,23.055]
[1672547718013,75.91,9.8916,9.8861,23.055]
[1672547718221,75.9,9.8929,9.8862,23.7112]
[1672547718434,40.0,9.8928,9.8862,23.7112]
[1672547718653,75.9,9.8927,9.8862,23.7112]
[1672547718870,40.0,9.8926,9.8862,23.7112]
[1672547719189,40.0,9.8924,9.8863,24.8358]
[1672547719504,40.0,9.8922,9.8863,24.8358]
[1672547719827,75.9,9.8921,9.8864,24.8358]
[1672547720218,40.0,9.892,9.8864,24.8358]
[1672547720550,40.0,9.8918,9.8864,24.8358]
[1672547720874,75.91,9.8917,9.8864,24.8358]
[1672547721190,75.9,9.8921,9.8864,24.8358]
[1672547721503,40.0,9.8924,9.8873,30.46475219]
[1672547721709,75.9,9.8923,9.8873,30.46475219]
[1672547722030,40.0,9.8922,9.8873,30.46475219]
[1672547722223,75.9,9.8921,9.8873,30.46475219]
[1672547722551,40.0,9.8926,9.8873,30.46475219]
[1672547722749,40.0,9.8924,9.8873,30.46475219]
[1672547723073,40.0,9.8922,9.8873,30.46475219]
[1672547723389,40.0,9.892,9.8873,30.46475219]
[1672547723701,40.0,9.8918,9.8873,30.46475219]
[1672547723923,40.0,9.8916,9.8873,30.46475219]
[1672547724129,75.91,9.8915,9.8873,30.46475219]
[1672547725589,75.9,9.8927,9.8873,30.46475219]
[1672547725803,40.0,9.894,9.8873,30.46475219]
[1672547726123,40.0,9.8938,9.8873,30.46475219]
[1672547726330,40.0,9.8936,9.8873,30.46475219]
[1672547726544,75.89,9.8935,9.8873,30.46475219]
[1672547726752,40.0,9.8934,9.8873,30.46475219]
[1672547727075,40.0,9.8932,9.8873,30.46475219]
[1672547727383,75.9,9.8931,9.8873,30.46475219]
[1672547727597,40.0,9.893,9.8873,30.46475219]
[1672547727912,40.0,9.8928,9.8873,30.46475219]
[1672547728124,75.9,9.8927,9.8873,30.46475219]
[1672547728433,40.0,9.8926,9.8873,30.46475219]
[1672547728646,40.0,9.8924,9.8873,30.46475219]
[1672547728851,40.0,9.8922,9.8873,30.46475219]
[1672547729064,40.0,9.892,9.8873,30.46475219]
[1672547729378,40.0,9.8918,9.8873,30.46475219]
[1672547729592,75.91,9.8917,9.8873,30.46475219]
[1672547729924,40.0,9.8916,9.8873,30.46475219]
[1672547730116,75.91,9.8915,9.8873,30.46475219]
[1672547730327,40.0,9.8924,9.8873,30.46475219]
[1672547730560,75.9,9.8923,9.8873,30.46475219]
[1672547730856,40.0,9.8922,9.8873,30.46475219]
[1672547731163,40.0,9.892,9.8873,30.46475219]
[1672547731378,75.9,9.8919,9.8873,30.46475219]
[1672547731781,40.0,9.8918,9.8873,30.46475219]
[1672547732006,40.0,9.8916,9.8873,30.46475219]
[1672547732215,75.91,9.8915,9.8873,30.46475219]
[1672547732428,40.0,9.8914,9.8873,30.46475219]
[1672547732622,40.0,9.8912,9.8873,30.46475219]
[1672547732832,75.91,9.8911,9.8873,30.46475219]
[1672547733464,40.0,9.8916,9.8873,30.46475219]
[1672547733695,75.91,9.8915,9.8873,30.46475219]
[1672547734096,40.0,9.8916,9.8873,30.46475219]
[1672547734307,40.0,9.8914,9.8873,30.46475219]
[1672547734526,75.91,9.8913,9.8873,30.46475219]
[1672547734737,40.0,9.8912,9.8873,30.46475219]
[1672547734955,75.91,9.8911,9.8873,30.46475219]
[1672547735772,75.91,9.8913,9.8873,30.46475219]
[1672547736006,40.0,9.8912,9.8873,30.46475219]
[1672547736211,40.0,9.891,9.8873,30.46475219]
[1672547736421,75.91,9.8909,9.8873,30.46475219]
[1672547737039,75.91,9.8917,9.8873,30.46475219]
[1672547737259,40.0,9.892,9.8873,30.46475219]
[1672547737472,75.9,9.8919,9.8873,30.46475219]
[1672547738508,75.9,9.8921,9.8873,30.46475219]
[1672547738929,40.0,9.892,9.8873,30.46475219]
[1672547739261,40.0,9.8918,9.8873,30.46475219]
[1672547739454,75.91,9.8917,9.8873,30.46475219]
[1672547739665,40.0,9.8916,9.8873,30.46475219]
[1672547739877,40.0,9.8914,9.8873,30.46475219]
[1672547740086,75.91,9.8913,9.8873,30.46475219]
[1672547740303,40.0,9.8912,9.8873,30.46475219]
[1672547740513,40.0,9.891,9.8873,30.46475219]
[1672547740718,75.91,9.8909,9.8873,30.46475219]
[1672547740934,40.0,9.8908,9.8873,30.46475219]
[1672547741144,75.91,9.8907,9.8873,30.46475219]
[1672547741360,40.0,9.8906,9.8873,30.46475219]
[1672547741580,40.0,9.8904,9.8873,30.46475219]
[1672547741774,40.0,9.8902,9.8873,30.46475219]
[1672547741991,75.92,9.8901,9.8873,30.46475219]
[1672547742186,40.0,9.89,9.8873,30.46475219]
[1672547742397,40.0,9.8898,9.8873,30.46475219]
[1672547743869,75.92,9.8901,9.8873,30.46475219]
[1672547744079,75.92,9.8903,9.8873,30.46475219]
[1672547744507,75.91,9.8909,9.8873,30.46475219]
[1672547745150,40.0,9.8914,9.8873,30.46475219]
[1672547745347,40.0,9.8912,9.8873,30.46475219]
[1672547745674,40.0,9.891,9.8873,30.46475219]
[1672547745887,75.91,9.8909,9.8873,30.46475219]
[1672547746097,40.0,9.8908,9.8873,30.46475219]
[1672547746288,40.0,9.8906,9.8873,30.46475219]
[1672547746498,75.92,9.8905,9.8873,30.46475219]
[1672547746709,40.0,9.8904,9.8873,30.46475219]
[1672547746923,40.0,9.8902,9.8873,30.46475219]
[1672547747237,75.92,9.8901,9.8873,30.46475219]
[1672547747652,75.92,9.8903,9.8873,30.46475219]
[1672547747864,40.0,9.8902,9.8873,30.46475219]
[1672547748069,75.92,9.8901,9.8873,30.46475219]
[1672547748304,75.92,9.8903,9.8873,30.46475219]
[1672547748501,75.92,9.8905,9.8873,30.46475219]
[1672547749129,75.91,9.8907,9.8873,30.46475219]
[1672547749544,40.0,9.8906,9.8873,30.46475219]
[1672547749778,75.92,9.8905,9.8873,30.46475219]
[1672547749992,40.0,9.8904,9.8873,30.46475219]
[1672547750192,40.0,9.8902,9.8873,30.46475219]
[1672547750405,75.92,9.8901,9.8873,30.46475219]
[1672547750605,74.865303,9.8969,9.8873,30.46475219]
[1672547750821,20.0,9.8947,9.8873,30.46475219]
[1672547751025,40.0,9.8968,9.8874,157.9401]
[1672547751237,40.0,9.8968,9.8873,30.46475219]
[1672547751238,74.865303,9.8928,9.8873,30.46475219]
[1672547751455,74.70784536,9.8906,9.8873,0.00475219]
[1672547751776,40.0,9.8904,9.8873,0.00475219]
[1672547752088,95.92,9.8903,9.8873,0.00475219]
[1672547752409,94.08857948,9.8902,9.8873,0.00475219]
[1672547752608,40.0,9.89,9.8873,0.00475219]
[1672547752803,40.0,9.8898,9.8873,0.00475219]
[1672547753017,95.92,9.8897,9.8873,0.00475219]
[1672547753254,40.0,9.8896,9.8873,0.00475219]
[1672547753564,40.0,9.8894,9.8873,0.00475219]
[1672547753772,40.0,9.8892,9.8873,0.00475219]
[1672547753980,95.93,9.8891,9.8873,0.00475219]
[1672547754196,40.0,9.889,9.8873,0.00475219]
[1672547754388,40.0,9.8888,9.8873,0.00475219]
[1672547754595,74.70784536,9.8912,9.8873,0.00475219]
[1672547754811,74.70784536,9.8924,9.8873,0.00475219]
[1672547755240,149.6956627,9.8943,9.8873,0.00475219]
[1672547755241,74.70784536,9.8925,9.8873,0.00475219]
[1672547755435,115.9,9.8924,9.8873,0.00475219]
[1672547763126,40.0,9.8923,9.8873,0.00475219]
[1672547763442,40.0,9.8921,9.8873,0.00475219]
[1672547763640,40.0,9.8919,9.8873,0.00475219]
[1672547763853,75.91,9.8918,9.8873,0.00475219]
[1672547764057,40.0,9.8917,9.8873,0.00475219]
[1672547764275,40.0,9.8915,9.8873,0.00475219]
[1672547764484,75.91,9.8914,9.8873,0.00475219]
[1672547764705,40.0,9.8913,9.8873,0.00475219]
[1672547764918,75.91,9.8912,9.8873,0.00475219]
[1672547765757,40.0,9.8917,9.8873,0.00475219]
[1672547765964,40.0,9.8915,9.8873,0.00475219]
[1672547766168,75.91,9.8914,9.8873,0.00475219]
[1672547766383,40.0,9.8913,9.8873,0.00475219]
[1672547766592,40.0,9.8911,9.8873,0.00475219]
[1672547766914,40.0,9.8909,9.8873,0.00475219]
[1672547767124,75.91,9.8908,9.8873,0.00475219]
[1672547767521,40.0,9.8907,9.8873,0.00475219]
[1672547767753,40.0,9.8905,9.8873,0.00475219]
[1672547767959,40.0,9.8903,9.8873,0.00475219]
[1672547768163,75.92,9.8902,9.8873,0.00475219]
[1672547768364,40.0,9.8901,9.8873,0.00475219]
[1672547768574,40.0,9.8899,9.8873,0.00475219]
[1672547768784,75.92,9.8898,9.8873,0.00475219]
[1672547769102,75.92,9.8904,9.8873,0.00475219]
[1672547769317,40.0,9.8903,9.8873,0.00475219]
[1672547769528,40.0,9.8901,9.8873,0.00475219]
[1672547769739,40.0,9.8899,9.8873,0.00475219]
[1672547769942,75.92,9.8898,9.8873,0.00475219]
[1672547770149,40.0,9.8897,9.8873,0.00475219]
[1672547770359,75.92,9.8896,9.8873,0.00475219]
[1672547770569,40.0,9.8895,9.8873,0.00475219]
[1672547770778,40.0,9.8893,9.8873,0.00475219]
[1672547770990,40.0,9.8891,9.8873,0.00475219]
[1672547771208,40.0,9.8889,9.8873,0.00475219]
[1672547771421,75.93,9.8888,9.8873,0.00475219]
[1672547771952,40.0,9.8887,9.8873,0.00475219]
[1672547772266,75.93,9.8886,9.8873,0.00475219]
[1672547772456,74.70784536,9.8928,9.8873,0.00475219]
[1672547773306,40.0,9.8903,9.8873,0.00475219]
[1672547773510,75.92,9.8902,9.8873,0.00475219]
[1672547773845,40.0,9.8901,9.8873,0.00475219]
[1672547774036,40.0,9.8899,9.8873,0.00475219]
[1672547774246,75.91,9.8906,9.8873,0.00475219]
[1672547774453,75.91,9.891,9.8873,0.00475219]
[1672547775330,75.91,9.8908,9.8873,0.00475219]
[1672547776683,75.91,9.8906,9.8873,0.00475219]
[1672547777436,75.91,9.8914,9.8873,0.00475219]
[1672547777842,75.9,9.8927,9.8873,0.00475219]
[1672547778064,75.9,9.8928,9.8873,0.00475219]
[1672547778280,40.0,9.8957,9.8873,0.00475219]
[1672547778489,95.88,9.8956,9.8873,0.00475219]
[1672547778679,40.0,9.8955,9.8873,0.00475219]
[1672547778891,95.88,9.8954,9.8873,0.00475219]
[1672547779423,40.0,9.8953,9.8873,0.00475219]
[1672547779634,95.88,9.8952,9.8873,0.00475219]
[1672547779846,40.0,9.8951,9.8873,0.00475219]
[1672547780054,95.88,9.895,9.8873,0.00475219]
[1672547786051,40.0,9.8949,9.8873,0.00475219]
[1672547786359,40.0,9.8947,9.8873,0.00475219]
[1672547786580,40.0,9.8945,9.8873,0.00475219]
[1672547786782,75.89,9.8944,9.8873,0.00475219]
[1672547786994,60.0,9.8943,9.8873,0.00475219]
[1672547787198,40.0,9.8941,9.8873,0.00475219]
[1672547787411,95.89,9.894,9.8873,0.00475219]
[1672547787612,95.89,9.894,9.8873,23.15225219]
[1672547792238,95.89,9.894,9.8874,303.4]
[1672547792465,95.89,9.894,9.8875,40.0]
[1672547798125,95.89,9.894,9.8873,23.1475]
[1672547800875,95.89,9.894,9.8874,40.0]
[1672547818851,20.0,9.894,9.8874,40.0]
[1672547819163,20.0,9.8956,9.8874,40.0]
[1672547819478,75.88,9.8955,9.8874,40.0]
[1672547819903,20.0,9.8954,9.8874,40.0]
[1672547820217,75.88,9.8953,9.8874,40.0]
[1672547820410,20.0,9.8952,9.8874,40.0]
[1672547820744,75.88,9.8951,9.8874,40.0]
[1672547820938,20.0,9.895,9.8874,40.0]
[1672547821143,75.88,9.8949,9.8874,40.0]
[1672547821356,20.0,9.8948,9.8874,40.0]
[1672547821567,75.88,9.8947,9.8874,40.0]
[1672547821773,20.0,9.8946,9.8874,40.0]
[1672547821983,75.88,9.8945,9.8874,40.0]
[1672547822194,20.0,9.8944,9.8874,40.0]
[1672547822509,75.89,9.8943,9.8874,40.0]
[1672547822732,20.0,9.8942,9.8874,40.0]
[1672547823365,20.0,9.8956,9.8874,40.0]
[1672547823573,75.88,9.8955,9.8874,40.0]
[1672547823807,20.0,9.8954,9.8874,40.0]
[1672547824127,75.88,9.8953,9.8874,40.0]
[1672547824328,20.0,9.8952,9.8874,40.0]
[1672547824542,75.88,9.8951,9.8874,40.0]
[1672547824736,20.0,9.895,9.8874,40.0]
[1672547824948,75.88,9.8949,9.8874,40.0]
[1672547825279,20.0,9.8948,9.8874,40.0]
[1672547825487,75.88,9.8947,9.8874,40.0]
[1672547825901,75.86,9.8984,9.8875,20.0]
[1672547826221,75.85,9.8996,9.8876,40.0]
[1672547826416,75.84,9.8998,9.8878,40.0]
[1672547826622,150.54784536,9.8998,9.8878,40.0]
[1672547826836,150.54784536,9.8998,9.888,40.0]
[1672547827052,150.54784536,9.8998,9.8882,40.0]
[1672547827262,150.54784536,9.8998,9.8883,20.0]
[1672547827695,75.84,9.8998,9.8886,40.0]
[1672547827906,75.84,9.8999,9.8887,20.0]
[1672547828318,75.84,9.8999,9.8889,343.4]
[1672547828645,150.54784536,9.8999,9.8891,40.0]
[1672547828854,75.84,9.8999,9.8891,343.4]
[1672547829164,150.54784536,9.9,9.8892,20.0]
[1672547829373,150.54784536,9.9,9.8894,40.0]
[1672547829584,150.54784536,9.9,9.8895,20.0]
[1672547829775,75.84,9.9,9.8895,20.0]
[1672547829989,75.84,9.9001,9.8898,40.0]
[1672547830304,289.30679257,9.9039,9.8898,40.0]
[1672547830305,75.84,9.9007,9.8901,40.0]
[1672547830520,74.70784536,9.9013,9.8904,40.0]
[1672547830724,150.53784536,9.9012,9.8906,303.4]
[1672547830935,150.53784536,9.9012,9.8908,303.4]
[1672547831369,40.0,9.9011,9.8908,303.4]
[1672547831574,75.84,9.901,9.8908,303.4]
[1672547831793,75.83,9.9011,9.8909,40.0]
[1672547832000,150.53784536,9.9014,9.8911,40.0]
[1672547832847,150.53784536,9.9014,9.8914,40.0]
[1672547833565,74.70784536,9.9013,9.8916,343.4]
[1672547833776,40.0,9.9011,9.8916,343.4]
[1672547833992,75.84,9.901,9.8917,463.5432]
[1672547834407,40.0,9.9009,9.8917,463.5432]
[1672547834623,40.0,9.9007,9.8918,160.1432]
[1672547834817,75.84,9.9006,9.8919,40.0]
[1672547835065,150.53784536,9.9014,9.8919,40.0]
[1672547835247,150.53784536,9.9014,9.892,161.2065]
[1672547835871,150.53784536,9.9014,9.8923,40.0]
[1672547835872,75.83,9.9014,9.8923,40.0]
[1672547836627,75.83,9.9014,9.8925,303.4]
[1672547837253,75.83,9.9014,9.8927,303.4]
[1672547837443,75.83,9.9014,9.8928,40.0]
[1672547837872,75.83,9.9014,9.8929,137.974]
[1672547838623,75.83,9.9014,9.893,144.2789]
[1672547839362,75.83,9.9014,9.8931,144.2789]
[1672547839981,75.83,9.9014,9.8932,24.6635]
[1672547840186,40.0,9.9013,9.8932,24.6635]
[1672547840390,75.83,9.9012,9.8932,24.6635]
[1672547840722,40.0,9.9013,9.8933,24.6635]
[1672547841038,75.83,9.9012,9.8933,24.6635]
[1672547841250,75.83,9.9012,9.8934,22.8634]
[1672547841463,75.83,9.9014,9.8935,22.8634]
[1672547841647,75.83,9.9016,9.8936,22.8634]
[1672547841861,75.83,9.9016,9.8937,22.8634]
[1672547842614,75.83,9.9016,9.8933,118.8931]
[1672547842615,75.83,9.9016,9.8938,22.8634]
[1672547842839,75.83,9.9016,9.894,40.0]
[1672547843018,150.53784536,9.9016,9.894,40.0]
[1672547843430,150.53784536,9.9016,9.8941,22.8634]
[1672547843647,150.53784536,9.9016,9.8942,22.8634]
[1672547843648,40.0,9.9015,9.8942,22.8634]
[1672547843962,40.0,9.9013,9.8942,22.8634]
[1672547844172,40.0,9.9011,9.8943,22.8634]
[1672547844396,40.0,9.9009,9.8936,118.8931]
[1672547844608,75.84,9.9008,9.8937,23.5184]
[1672547844823,40.0,9.9007,9.8937,23.5184]
[1672547845014,40.0,9.9005,9.8937,23.5184]
[1672547845228,75.84,9.9004,9.8937,23.5184]
[1672547845441,40.0,9.9003,9.8937,23.5184]
[1672547845647,40.0,9.9001,9.8937,23.5184]
[1672547845868,40.0,9.8999,9.8937,23.5184]
[1672547846076,75.84,9.8998,9.8937,23.5184]
[1672547846306,40.0,9.8997,9.8937,23.5184]
[1672547846508,40.0,9.8995,9.8937,23.5184]
[1672547846713,75.85,9.8994,9.8937,23.5184]
[1672547847023,40.0,9.8993,9.8937,23.5184]
[1672547847224,40.0,9.8991,9.8937,23.5184]
[1672547847437,40.0,9.8989,9.8937,23.5184]
[1672547847651,75.85,9.8988,9.8937,23.5184]
[1672547848078,40.0,9.8987,9.8937,23.5184]
[1672547848297,40.0,9.8985,9.8937,23.5184]
[1672547848498,75.86,9.8984,9.8937,23.5184]
[1672547848816,40.0,9.8983,9.8937,23.5184]
[1672547849026,40.0,9.8981,9.8937,23.5184]
[1672547849213,75.86,9.898,9.8937,23.5184]
[1672547850688,75.86,9.8984,9.8937,23.5184]
[1672547852162,40.0,9.8983,9.8937,23.5184]
[1672547852373,75.86,9.8982,9.8937,23.5184]
[1672547852584,40.0,9.8981,9.8937,23.5184]
[1672547852803,40.0,9.8979,9.8937,23.5184]
[1672547853001,75.86,9.8978,9.8937,23.5184]
[1672547853528,75.86,9.8982,9.8937,23.5184]
[1672547854485,40.0,9.8985,9.8937,23.5184]
[1672547854815,75.86,9.8984,9.8937,23.5184]
[1672547855025,40.0,9.8983,9.8937,23.5184]
[1672547855235,75.86,9.8982,9.8937,23.5184]
[1672547855430,40.0,9.8985,9.8937,23.5184]
[1672547855431,75.86,9.8984,9.8937,23.5184]
[1672547855855,75.85,9.8988,9.8937,23.5184]
[1672547857242,40.0,9.8987,9.8937,23.5184]
[1672547857450,40.0,9.8985,9.8937,23.5184]
[1672547857638,75.86,9.8984,9.8937,23.5184]
[1672547858917,75.85,9.8992,9.8937,23.5184]
[1672547859543,75.85,9.8994,9.8937,23.5184]
[1672547860490,75.85,9.8996,9.8937,23.5184]
[1672547860688,40.0,9.8997,9.8937,23.5184]
[1672547860894,40.0,9.8995,9.8937,23.5184]
[1672547861104,75.85,9.8994,9.8937,23.5184]
[1672547861352,75.84,9.9,9.8937,23.5184]
[1672547861865,75.84,9.9002,9.8937,23.5184]
[1672547862050,114.70784536,9.9009,9.8937,23.5184]
[1672547862051,40.0,9.9007,9.8937,23.5184]
[1672547862257,40.0,9.9005,9.8937,23.5184]
[1672547862488,75.84,9.9004,9.8937,23.5184]
[1672547863103,40.0,9.9003,9.8937,23.5184]
[1672547863312,75.84,9.9002,9.8937,23.5184]
[1672547863521,40.0,9.9001,9.8937,23.5184]
[1672547863748,40.0,9.8999,9.8937,23.5184]
[1672547863964,75.84,9.8998,9.8937,23.5184]
[1672547864173,40.0,9.8997,9.8937,23.5184]
[1672547864387,40.0,9.8995,9.8937,23.5184]
[1672547864574,40.0,9.8993,9.8937,23.5184]
[1672547864783,75.85,9.8992,9.8937,23.5184]
[1672547864993,40.0,9.8991,9.8937,23.5184]
[1672547865221,40.0,9.8989,9.8937,23.5184]
[1672547865543,75.85,9.8988,9.8937,23.5184]
[1672547865742,75.84,9.8998,9.8937,23.5184]
[1672547865956,40.0,9.8999,9.8937,23.5184]
[1672547866166,75.84,9.8998,9.8937,23.5184]
[1672547866380,40.0,9.8997,9.8937,23.5184]
[1672547866599,40.0,9.8995,9.8937,23.5184]
[1672547866811,75.85,9.8994,9.8937,23.5184]
[1672547867541,75.85,9.8994,9.8859,22.9979]
[1672547867542,114.70784536,9.8992,9.8784,40.0]
[1672547867760,40.0,9.8989,9.886,23.9583]
[1672547867959,40.0,9.8987,9.8861,132.9147]
[1672547868176,40.0,9.8987,9.8862,23.9583]
[1672547868177,95.85,9.8986,9.8862,23.9583]
[1672547868373,40.0,9.8985,9.8862,23.9583]
[1672547868595,40.0,9.8983,9.8862,23.9583]
[1672547868911,40.0,9.8981,9.8862,23.9583]
[1672547869117,40.0,9.8979,9.8862,23.9583]
[1672547869337,95.86,9.8978,9.8863,23.9583]
[1672547869528,40.0,9.8977,9.8863,23.9583]
[1672547869730,40.0,9.8975,9.8863,23.9583]
[1672547869944,40.0,9.8973,9.8864,23.9583]
[1672547870166,95.86,9.8972,9.8864,23.9583]
[1672547870378,40.0,9.8971,9.8864,23.9583]
[1672547870576,40.0,9.8969,9.8864,23.9583]
[1672547870787,40.0,9.8967,9.8864,23.9583]
[1672547870997,40.0,9.8965,9.8864,23.9583]
[1672547871208,95.87,9.8964,9.8864,23.9583]
[1672547871424,40.0,9.8963,9.8865,22.764]
[1672547871634,40.0,9.8961,9.8865,22.764]
[1672547871842,40.0,9.8959,9.8865,22.764]
[1672547872053,95.88,9.8958,9.8865,22.764]
[1672547872262,40.0,9.8957,9.8865,22.764]
[1672547872477,40.0,9.8955,9.8865,22.764]
[1672547872689,40.0,9.8953,9.8865,22.764]
[1672547872903,95.88,9.8952,9.8865,22.764]
[1672547873116,40.0,9.8951,9.8865,22.764]
[1672547873320,40.0,9.8949,9.8866,22.764]
[1672547873532,40.0,9.8947,9.8866,22.764]
[1672547873744,95.88,9.8946,9.8866,22.764]
[1672547873959,40.0,9.8945,9.8866,22.764]
[1672547874165,40.0,9.8943,9.8866,22.764]
[1672547874489,40.0,9.8941,9.8866,22.764]
[1672547874711,40.0,9.8939,9.8866,22.764]
[1672547875027,40.0,9.8937,9.8866,22.764]
[1672547875210,40.0,9.8935,9.8867,23.4469]
[1672547875416,40.0,9.8933,9.8867,23.4469]
[1672547875630,75.89,9.8932,9.8867,23.4469]
[1672547876478,40.0,9.8931,9.8867,23.4469]
[1672547876813,40.0,9.8929,9.8867,23.4469]
[1672547877006,75.9,9.8928,9.8867,23.4469]
[1672547877537,40.0,9.8927,9.8867,23.4469]
[1672547877752,40.0,9.8925,9.8867,23.4469]
[1672547877958,40.0,9.8923,9.8867,23.4469]
[1672547878167,75.9,9.8922,9.8867,23.4469]
[1672547878368,40.0,9.8921,9.8867,23.4469]